[Event "Campeonato de Aragon Individual 2020 Fase Final"]
[Site "Zaragoza"]
[Date "2020.10.17"]
[Round "1.1"]
[White "Ramiro Ovejero, Juan Luis"]
[Black "Lana Rodriguez, David"]
[Result "1-0"]
[TimeControl "90+30 sg"]
[WhiteElo "2346"]
[BlackElo "2369"]

1. e4 {[%clk 01:30:57]} {[%emt 00:00:02]} e6 {[%clk 01:30:55]} {[%emt
00:00:05]} 2. d4 {[%clk 01:31:20]} {[%emt 00:00:07]} d5 {[%clk 01:31:24]}
{[%emt 00:00:02]} 3. Nd2 {[%clk 01:31:45]} {[%emt 00:00:04]} dxe4 {[%clk
01:31:49]} {[%emt 00:00:05]} 4. Nxe4 {[%clk 01:32:10]} {[%emt 00:00:04]} Nd7
{[%clk 01:32:14]} {[%emt 00:00:06]} 5. Nf3 {[%clk 01:32:05]} {[%emt 00:00:34]}
Ngf6 {[%clk 01:32:04]} {[%emt 00:00:40]} 6. Nxf6+ {[%clk 01:32:16]} {[%emt
00:00:19]} Nxf6 {[%clk 01:32:32]} {[%emt 00:00:02]} 7. Bd3 {[%clk 01:32:17]}
{[%emt 00:00:28]} Be7 {[%clk 01:31:06]} {[%emt 00:01:57]} 8. Qe2 {[%clk
01:32:02]} {[%emt 00:00:46]} c5 {[%clk 01:27:25]} {[%emt 00:04:09]} 9. dxc5
{[%clk 01:29:43]} {[%emt 00:02:49]} Qc7 {[%clk 01:27:02]} {[%emt 00:00:53]} 10.
Be3 {[%clk 01:10:02]} {[%emt 00:20:11]} Bxc5 {[%clk 01:24:50]} {[%emt
00:02:43]} 11. Bxc5 {[%clk 01:10:23]} {[%emt 00:00:09]} Qxc5 {[%clk 01:25:16]}
{[%emt 00:00:04]} 12. O-O-O {[%clk 01:09:51]} {[%emt 00:01:02]} Bd7 {[%clk
01:21:22]} {[%emt 00:04:24]} 13. Ne5 {[%clk 01:03:18]} {[%emt 00:07:03]} Bc6
{[%clk 01:21:44]} {[%emt 00:00:08]} 14. Nxc6 {[%clk 00:51:19]} {[%emt
00:12:28]} bxc6 {[%clk 01:22:10]} {[%emt 00:00:04]} 15. f4 {[%clk 00:46:17]}
{[%emt 00:05:32]} O-O {[%clk 01:18:18]} {[%emt 00:04:22]} 16. g4 {[%clk
00:40:43]} {[%emt 00:06:04]} Rab8 {[%clk 01:18:28]} {[%emt 00:00:20]} 17. c4
{[%clk 00:27:51]} {[%emt 00:13:22]} Rfd8 {[%clk 01:15:17]} {[%emt 00:03:41]} 18.
g5 {[%clk 00:26:25]} {[%emt 00:01:56]} Nd7 {[%clk 01:13:00]} {[%emt 00:02:48]}
19. Bc2 {[%clk 00:08:55]} {[%emt 00:17:59]} Nb6 {[%clk 01:12:55]} {[%emt
00:00:35]} 20. Rxd8+ {[%clk 00:09:12]} {[%emt 00:00:14]} Rxd8 {[%clk 01:13:23]}
{[%emt 00:00:02]} 21. Rd1 {[%clk 00:09:21]} {[%emt 00:00:20]} Rd4 {[%clk
01:10:54]} {[%emt 00:02:59]} 22. b3 {[%clk 00:08:35]} {[%emt 00:01:16]} g6
{[%clk 01:10:50]} {[%emt 00:00:35]} 23. Rxd4 {[%clk 00:08:26]} {[%emt
00:00:39]} Qxd4 {[%clk 01:11:18]} {[%emt 00:00:02]} 24. Qd2 {[%clk 00:08:45]}
{[%emt 00:00:11]} Qa1+ {[%clk 01:08:16]} {[%emt 00:03:31]} 25. Bb1 {[%clk
00:09:11]} {[%emt 00:00:04]} Kg7 {[%clk 01:08:20]} {[%emt 00:00:26]} 26. Qb2+
{[%clk 00:08:08]} {[%emt 00:01:34]} Qxb2+ {[%clk 01:08:44]} {[%emt 00:00:06]}
27. Kxb2 {[%clk 00:08:36]} {[%emt 00:00:02]} f6 {[%clk 01:07:25]} {[%emt
00:01:50]} 28. h4 {[%clk 00:08:08]} {[%emt 00:00:57]} fxg5 {[%clk 01:04:35]}
{[%emt 00:03:20]} 29. hxg5 {[%clk 00:08:25]} {[%emt 00:00:12]} c5 {[%clk
01:01:58]} {[%emt 00:03:08]} 30. Kc3 {[%clk 00:07:47]} {[%emt 00:01:09]} a5
{[%clk 01:02:01]} {[%emt 00:00:27]} 31. a3 {[%clk 00:07:19]} {[%emt 00:00:58]}
Kf8 {[%clk 01:01:01]} {[%emt 00:01:30]} 32. b4 {[%clk 00:07:27]} {[%emt
00:00:22]} axb4+ {[%clk 01:01:22]} {[%emt 00:00:09]} 33. axb4 {[%clk 00:07:54]}
{[%emt 00:00:03]} cxb4+ {[%clk 01:01:48]} {[%emt 00:00:04]} 34. Kxb4 {[%clk
00:08:19]} {[%emt 00:00:05]} Ke7 {[%clk 01:01:34]} {[%emt 00:00:44]} 35. Kb5
{[%clk 00:08:37]} {[%emt 00:00:12]} Nc8 {[%clk 01:01:06]} {[%emt 00:00:58]} 36.
c5 {[%clk 00:08:58]} {[%emt 00:00:09]} Kd7 {[%clk 01:01:24]} {[%emt 00:00:11]}
37. Be4 {[%clk 00:08:12]} {[%emt 00:01:16]} Kc7 {[%clk 00:59:22]} {[%emt
00:02:33]} 38. Kc4 {[%clk 00:08:33]} {[%emt 00:00:09]} Kd7 {[%clk 00:59:29]}
{[%emt 00:00:22]} 39. Kd4 {[%clk 00:08:49]} {[%emt 00:00:13]} Na7 {[%clk
00:59:41]} {[%emt 00:00:19]} 40. Ke5 {[%clk 00:08:43]} {[%emt 00:00:36]} Ke7
{[%clk 01:00:06]} {[%emt 00:00:05]} 41. Bb7 {[%clk 00:08:33]} {[%emt 00:00:40]}
Nb5 {[%clk 01:00:24]} {[%emt 00:00:12]} 42. Bc8 {[%clk 00:08:35]} {[%emt
00:00:28]} Nc7 {[%clk 00:57:43]} {[%emt 00:03:12]} 43. c6 {[%clk 00:08:33]}
{[%emt 00:00:31]} Nd5 {[%clk 00:56:57]} {[%emt 00:01:16]} 44. Bxe6 {[%clk
00:08:52]} {[%emt 00:00:11]} Nxf4 {[%clk 00:56:17]} {[%emt 00:01:11]} 45. c7
{[%clk 00:09:01]} {[%emt 00:00:20]} 1-0

[Event "Campeonato de Aragon Individual 2020 Fase Final"]
[Site "Zaragoza"]
[Date "2020.10.17"]
[Round "1.2"]
[White "Palacios Herrero, Pablo"]
[Black "Quintin Navarro, Alberto"]
[Result "0-1"]
[TimeControl "90+30 sg"]
[WhiteElo "2232"]
[BlackElo "2383"]

1. e4 {[%clk 01:30:56]} {[%emt 00:00:02]} e5 {[%clk 01:30:54]} {[%emt
00:00:08]} 2. Nf3 {[%clk 01:31:19]} {[%emt 00:00:07]} Nc6 {[%clk 01:31:19]}
{[%emt 00:00:04]} 3. Bb5 {[%clk 01:31:41]} {[%emt 00:00:09]} a6 {[%clk
01:31:44]} {[%emt 00:00:04]} 4. Ba4 {[%clk 01:32:05]} {[%emt 00:00:06]} Nf6
{[%clk 01:32:09]} {[%emt 00:00:05]} 5. O-O {[%clk 01:32:18]} {[%emt 00:00:17]}
Be7 {[%clk 01:32:34]} {[%emt 00:00:05]} 6. d3 {[%clk 01:31:55]} {[%emt
00:00:52]} d6 {[%clk 01:32:48]} {[%emt 00:00:16]} 7. c3 {[%clk 01:31:24]}
{[%emt 00:01:01]} O-O {[%clk 01:32:57]} {[%emt 00:00:22]} 8. Re1 {[%clk
01:31:21]} {[%emt 00:00:33]} b5 {[%clk 01:30:51]} {[%emt 00:02:36]} 9. Bb3
{[%clk 01:31:26]} {[%emt 00:00:24]} Na5 {[%clk 01:29:33]} {[%emt 00:01:49]} 10.
Bc2 {[%clk 01:31:47]} {[%emt 00:00:09]} c5 {[%clk 01:29:49]} {[%emt 00:00:13]}
11. d4 {[%clk 01:29:03]} {[%emt 00:03:14]} exd4 {[%clk 01:24:29]} {[%emt
00:05:51]} 12. cxd4 {[%clk 01:29:18]} {[%emt 00:00:14]} Nc6 {[%clk 01:24:33]}
{[%emt 00:00:26]} 13. Nbd2 {[%clk 01:12:52]} {[%emt 00:16:56]} cxd4 {[%clk
01:22:36]} {[%emt 00:02:26]} 14. h3 {[%clk 01:10:18]} {[%emt 00:03:04]} Nb4
{[%clk 01:10:33]} {[%emt 00:12:33]} 15. Bb1 {[%clk 01:07:05]} {[%emt 00:03:43]}
d3 {[%clk 01:10:26]} {[%emt 00:00:38]} 16. Nb3 {[%clk 01:05:24]} {[%emt
00:02:11]} Bb7 {[%clk 01:08:15]} {[%emt 00:02:41]} 17. Bxd3 {[%clk 01:02:13]}
{[%emt 00:03:41]} Nxd3 {[%clk 01:08:35]} {[%emt 00:00:10]} 18. Qxd3 {[%clk
01:02:39]} {[%emt 00:00:04]} Nd7 {[%clk 01:04:29]} {[%emt 00:04:34]} 19. Bd2
{[%clk 00:52:14]} {[%emt 00:10:56]} Nc5 {[%clk 01:02:37]} {[%emt 00:02:22]} 20.
Qb1 {[%clk 00:46:48]} {[%emt 00:05:56]} Rc8 {[%clk 00:58:51]} {[%emt 00:04:16]}
21. Ba5 {[%clk 00:43:39]} {[%emt 00:03:40]} Qd7 {[%clk 00:58:25]} {[%emt
00:00:56]} 22. Nbd4 {[%clk 00:42:00]} {[%emt 00:02:09]} Bf6 {[%clk 00:57:17]}
{[%emt 00:01:38]} 23. Nf5 {[%clk 00:35:00]} {[%emt 00:07:30]} Nxe4 {[%clk
00:48:18]} {[%emt 00:09:29]} 24. Ne3 {[%clk 00:32:26]} {[%emt 00:03:04]} h5
{[%clk 00:38:08]} {[%emt 00:10:40]} 25. Rd1 {[%clk 00:30:36]} {[%emt 00:02:20]}
Qe6 {[%clk 00:35:04]} {[%emt 00:03:34]} 26. Nd4 {[%clk 00:25:11]} {[%emt
00:05:56]} Bxd4 {[%clk 00:35:08]} {[%emt 00:00:26]} 27. Rxd4 {[%clk 00:25:38]}
{[%emt 00:00:02]} Rfe8 {[%clk 00:34:06]} {[%emt 00:01:33]} 28. Be1 {[%clk
00:25:01]} {[%emt 00:01:07]} Rc5 {[%clk 00:27:33]} {[%emt 00:07:03]} 29. Qd3
{[%clk 00:22:09]} {[%emt 00:03:21]} Rg5 {[%clk 00:24:56]} {[%emt 00:03:07]} 30.
f4 {[%clk 00:16:08]} {[%emt 00:06:31]} Rc5 {[%clk 00:22:25]} {[%emt 00:03:01]}
31. Bb4 {[%clk 00:14:55]} {[%emt 00:01:43]} Rcc8 {[%clk 00:19:28]} {[%emt
00:03:26]} 32. Nd5 {[%clk 00:14:18]} {[%emt 00:01:06]} Rc4 {[%clk 00:19:09]}
{[%emt 00:00:50]} 33. Rd1 {[%clk 00:11:41]} {[%emt 00:03:08]} Bxd5 {[%clk
00:19:09]} {[%emt 00:00:30]} 34. Rxd5 {[%clk 00:11:51]} {[%emt 00:00:20]} Rxb4
{[%clk 00:19:31]} {[%emt 00:00:08]} 35. b3 {[%clk 00:10:16]} {[%emt 00:02:05]}
Nc5 {[%clk 00:15:18]} {[%emt 00:04:44]} 36. Qd2 {[%clk 00:10:30]} {[%emt
00:00:16]} Qe3+ {[%clk 00:14:34]} {[%emt 00:01:13]} 37. Qxe3 {[%clk 00:10:45]}
{[%emt 00:00:15]} Rxe3 {[%clk 00:14:59]} {[%emt 00:00:05]} 38. Rxh5 {[%clk
00:10:53]} {[%emt 00:00:23]} g6 {[%clk 00:13:39]} {[%emt 00:01:50]} 39. Rhd5
{[%clk 00:10:22]} {[%emt 00:01:00]} Rxf4 {[%clk 00:13:52]} {[%emt 00:00:17]} 40.
Rxd6 {[%clk 00:10:20]} {[%emt 00:00:32]} Re2 {[%clk 00:13:41]} {[%emt
00:00:41]} 41. R1d2 {[%clk 00:08:53]} {[%emt 00:01:57]} Re1+ {[%clk 00:12:22]}
{[%emt 00:01:49]} 42. Kh2 {[%clk 00:09:18]} {[%emt 00:00:05]} Rff1 {[%clk
00:12:39]} {[%emt 00:00:13]} 43. g4 {[%clk 00:08:12]} {[%emt 00:01:36]} Rh1+
{[%clk 00:12:41]} {[%emt 00:00:28]} 44. Kg2 {[%clk 00:08:37]} {[%emt 00:00:05]}
Reg1+ {[%clk 00:13:01]} {[%emt 00:00:10]} 45. Kf3 {[%clk 00:08:53]} {[%emt
00:00:13]} Rxh3+ {[%clk 00:13:13]} {[%emt 00:00:18]} 46. Kf4 {[%clk 00:09:07]}
{[%emt 00:00:17]} Rh4 {[%clk 00:12:29]} {[%emt 00:01:15]} 47. Rc6 {[%clk
00:08:30]} {[%emt 00:01:07]} Rgxg4+ {[%clk 00:12:33]} {[%emt 00:00:26]} 48. Ke5
{[%clk 00:08:43]} {[%emt 00:00:17]} Rh5+ {[%clk 00:12:51]} {[%emt 00:00:12]}
0-1

[Event "Campeonato de Aragon Individual 2020 Fase Final"]
[Site "Zaragoza"]
[Date "2020.10.17"]
[Round "1.3"]
[White "Romero Pallares, Daniel"]
[Black "Garza Marco, Sergio"]
[Result "1/2-1/2"]
[TimeControl "90+30 sg"]
[WhiteElo "2209"]
[BlackElo "2399"]

1. e4 {[%clk 01:30:57]} {[%emt 00:00:02]} c5 {[%clk 01:30:54]} {[%emt
00:00:06]} 2. Nf3 {[%clk 01:31:09]} {[%emt 00:00:18]} e6 {[%clk 01:31:18]}
{[%emt 00:00:06]} 3. g3 {[%clk 01:28:50]} {[%emt 00:02:49]} Nc6 {[%clk
01:30:30]} {[%emt 00:01:19]} 4. Bg2 {[%clk 01:29:06]} {[%emt 00:00:13]} Nf6
{[%clk 01:30:03]} {[%emt 00:00:57]} 5. Nc3 {[%clk 01:27:39]} {[%emt 00:01:58]}
d5 {[%clk 01:18:16]} {[%emt 00:12:16]} 6. exd5 {[%clk 01:27:55]} {[%emt
00:00:13]} exd5 {[%clk 01:18:40]} {[%emt 00:00:06]} 7. d4 {[%clk 01:26:24]}
{[%emt 00:02:01]} Bg4 {[%clk 01:18:49]} {[%emt 00:00:21]} 8. h3 {[%clk
01:23:17]} {[%emt 00:03:36]} Bxf3 {[%clk 01:17:38]} {[%emt 00:01:41]} 9. Qxf3
{[%clk 01:23:14]} {[%emt 00:00:34]} Qe7+ {[%clk 01:10:06]} {[%emt 00:08:02]} 10.
Kf1 {[%clk 01:23:32]} {[%emt 00:00:11]} Nxd4 {[%clk 01:09:17]} {[%emt
00:01:19]} 11. Qd3 {[%clk 01:23:45]} {[%emt 00:00:17]} O-O-O {[%clk 01:05:47]}
{[%emt 00:04:00]} 12. Bg5 {[%clk 01:21:20]} {[%emt 00:02:55]} Qe5 {[%clk
01:05:56]} {[%emt 00:00:21]} 13. Bxf6 {[%clk 01:02:07]} {[%emt 00:19:43]} Qxf6
{[%clk 01:05:52]} {[%emt 00:00:34]} 14. Nxd5 {[%clk 01:02:16]} {[%emt
00:00:21]} Qg6 {[%clk 01:05:19]} {[%emt 00:01:03]} 15. Be4 {[%clk 00:47:56]}
{[%emt 00:14:50]} f5 {[%clk 01:05:42]} {[%emt 00:00:07]} 16. Bg2 {[%clk
00:48:23]} {[%emt 00:00:03]} Qf7 {[%clk 01:03:21]} {[%emt 00:02:51]} 17. Qc4
{[%clk 00:47:21]} {[%emt 00:01:33]} Kb8 {[%clk 01:03:21]} {[%emt 00:00:31]} 18.
c3 {[%clk 00:46:24]} {[%emt 00:01:26]} Nc6 {[%clk 01:02:40]} {[%emt 00:01:11]}
19. Ne3 {[%clk 00:41:59]} {[%emt 00:04:55]} Qc7 {[%clk 00:39:54]} {[%emt
00:23:15]} 20. Nd5 {[%clk 00:40:28]} {[%emt 00:02:02]} Qf7 {[%clk 00:39:00]}
{[%emt 00:01:24]} 21. Rd1 {[%clk 00:28:00]} {[%emt 00:12:58]} Bd6 {[%clk
00:38:07]} {[%emt 00:01:23]} 22. Ne3 {[%clk 00:23:57]} {[%emt 00:04:33]} Qxc4+
{[%clk 00:36:56]} {[%emt 00:01:41]} 23. Nxc4 {[%clk 00:24:21]} {[%emt
00:00:05]} Kc7 {[%clk 00:37:18]} {[%emt 00:00:09]} 24. f4 {[%clk 00:21:20]}
{[%emt 00:03:31]} Be7 {[%clk 00:35:03]} {[%emt 00:02:44]} 25. Kf2 {[%clk
00:17:10]} {[%emt 00:04:39]} Bf6 {[%clk 00:35:20]} {[%emt 00:00:14]} 26. Ne3
{[%clk 00:16:05]} {[%emt 00:01:34]} Ne7 {[%clk 00:35:40]} {[%emt 00:00:11]} 27.
a4 {[%clk 00:10:44]} {[%emt 00:05:51]} b6 {[%clk 00:33:58]} {[%emt 00:02:13]}
28. h4 {[%clk 00:07:55]} {[%emt 00:03:19]} g6 {[%clk 00:31:01]} {[%emt
00:03:27]} 29. Rhe1 {[%clk 00:06:06]} {[%emt 00:02:19]} Rxd1 {[%clk 00:31:22]}
{[%emt 00:00:08]} 30. Rxd1 {[%clk 00:06:18]} {[%emt 00:00:18]} Rd8 {[%clk
00:31:25]} {[%emt 00:00:27]} 31. Rxd8 {[%clk 00:05:50]} {[%emt 00:00:59]} Kxd8
{[%clk 00:31:54]} {[%emt 00:00:01]} 32. Ke2 {[%clk 00:04:52]} {[%emt 00:01:28]}
h6 {[%clk 00:29:43]} {[%emt 00:02:40]} 33. Kd3 {[%clk 00:04:06]} {[%emt
00:01:15]} Kd7 {[%clk 00:26:31]} {[%emt 00:03:43]} 34. Kc4 {[%clk 00:03:11]}
{[%emt 00:01:25]} g5 {[%clk 00:24:50]} {[%emt 00:02:10]} 35. hxg5 {[%clk
00:02:56]} {[%emt 00:00:45]} hxg5 {[%clk 00:25:19]} {[%emt 00:00:01]} 36. Kb5
{[%clk 00:00:40]} {[%emt 00:02:46]} gxf4 {[%clk 00:25:26]} {[%emt 00:00:23]} 37.
gxf4 {[%clk 00:01:07]} {[%emt 00:00:03]} Bh4 {[%clk 00:25:17]} {[%emt
00:00:39]} 38. Ka6 {[%clk 00:00:32]} {[%emt 00:01:06]} Bf2 {[%clk 00:23:00]}
{[%emt 00:02:47]} 39. Nc4 {[%clk 00:00:34]} {[%emt 00:00:28]} Nc8 {[%clk
00:23:22]} {[%emt 00:00:07]} 40. Bh3 {[%clk 00:00:35]} {[%emt 00:00:29]} Ke6
{[%clk 00:23:11]} {[%emt 00:00:42]} 41. Kb7 {[%clk 00:00:34]} {[%emt 00:00:31]}
Nd6+ {[%clk 00:23:40]} 42. Nxd6 {[%clk 00:00:57]} {[%emt 00:00:08]} Kxd6 {[%clk
00:24:09]} 43. Kxa7 {[%clk 00:00:46]} {[%emt 00:00:41]} Kc7 {[%clk 00:24:38]}
44. Bxf5 {[%clk 00:00:38]} {[%emt 00:00:38]} Be3 {[%clk 00:25:07]} {[%emt
00:00:02]} 45. Ka6 {[%clk 00:00:35]} {[%emt 00:00:32]} Bxf4 {[%clk 00:25:28]}
{[%emt 00:00:09]} 46. Kb5 {[%clk 00:00:37]} {[%emt 00:00:28]} Bc1 {[%clk
00:25:47]} {[%emt 00:00:11]} 47. b3 {[%clk 00:00:45]} {[%emt 00:00:22]} Bd2
{[%clk 00:26:09]} {[%emt 00:00:08]} 48. Kc4 {[%clk 00:01:06]} {[%emt 00:00:08]}
Be1 {[%clk 00:26:37]} {[%emt 00:00:02]} 49. b4 {[%clk 00:01:10]} {[%emt
00:00:27]} cxb4 {[%clk 00:27:03]} {[%emt 00:00:05]} 50. cxb4 {[%clk 00:01:28]}
{[%emt 00:00:12]} Kb7 {[%clk 00:27:10]} {[%emt 00:00:23]} 51. a5 {[%clk
00:01:44]} {[%emt 00:00:14]} bxa5 {[%clk 00:27:24]} {[%emt 00:00:16]} 52. bxa5
{[%clk 00:02:11]} {[%emt 00:00:03]} Bxa5 {[%clk 00:27:48]} {[%emt 00:00:06]}
1/2-1/2

[Event "Campeonato de Aragon Individual 2020 Fase Final"]
[Site "Zaragoza"]
[Date "2020.10.17"]
[Round "1.4"]
[White "Eizaguerri Floris, Maria"]
[Black "Gines Esteo, Pedro Antonio"]
[Result "1-0"]
[TimeControl "90+30 sg"]
[WhiteElo "2167"]
[BlackElo "2434"]

1. e4 {[%clk 01:30:57]} {[%emt 00:00:01]} c6 {[%clk 01:30:19]} {[%emt
00:00:42]} 2. d4 {[%clk 01:31:17]} {[%emt 00:00:10]} d5 {[%clk 01:30:42]}
{[%emt 00:00:09]} 3. e5 {[%clk 01:31:37]} {[%emt 00:00:08]} Bf5 {[%clk
01:30:39]} {[%emt 00:00:32]} 4. Nd2 {[%clk 01:31:37]} {[%emt 00:00:31]} e6
{[%clk 01:30:26]} {[%emt 00:00:42]} 5. Nb3 {[%clk 01:31:44]} {[%emt 00:00:23]}
Nd7 {[%clk 01:29:48]} {[%emt 00:01:08]} 6. Nf3 {[%clk 01:32:03]} {[%emt
00:00:11]} Ne7 {[%clk 01:30:00]} {[%emt 00:00:18]} 7. Be2 {[%clk 01:32:24]}
{[%emt 00:00:08]} Nc8 {[%clk 01:21:53]} {[%emt 00:08:38]} 8. O-O {[%clk
01:31:33]} {[%emt 00:01:21]} Be7 {[%clk 01:22:12]} {[%emt 00:00:11]} 9. a4
{[%clk 01:29:28]} {[%emt 00:02:36]} O-O {[%clk 01:20:24]} {[%emt 00:02:17]} 10.
a5 {[%clk 01:29:54]} {[%emt 00:00:05]} a6 {[%clk 01:20:24]} {[%emt 00:00:30]}
11. Be3 {[%clk 01:26:41]} {[%emt 00:03:43]} Na7 {[%clk 01:20:40]} {[%emt
00:00:15]} 12. Ne1 {[%clk 01:16:01]} {[%emt 00:11:10]} c5 {[%clk 01:04:36]}
{[%emt 00:16:33]} 13. dxc5 {[%clk 01:11:03]} {[%emt 00:05:28]} Nxe5 {[%clk
00:57:39]} {[%emt 00:07:27]} 14. Nd4 {[%clk 00:50:13]} {[%emt 00:21:20]} Bg6
{[%clk 00:56:37]} {[%emt 00:01:32]} 15. b4 {[%clk 00:48:32]} {[%emt 00:02:11]}
Nac6 {[%clk 00:46:42]} {[%emt 00:10:25]} 16. c3 {[%clk 00:46:01]} {[%emt
00:03:01]} Nc4 {[%clk 00:46:01]} {[%emt 00:01:11]} 17. Bxc4 {[%clk 00:40:49]}
{[%emt 00:05:43]} dxc4 {[%clk 00:45:15]} {[%emt 00:01:16]} 18. Qe2 {[%clk
00:31:03]} {[%emt 00:10:16]} Bd3 {[%clk 00:29:29]} {[%emt 00:16:17]} 19. Nxd3
{[%clk 00:31:04]} {[%emt 00:00:29]} cxd3 {[%clk 00:29:57]} {[%emt 00:00:02]} 20.
Qf3 {[%clk 00:27:54]} {[%emt 00:03:40]} Qd7 {[%clk 00:29:57]} {[%emt 00:00:30]}
21. Nxc6 {[%clk 00:20:35]} {[%emt 00:07:50]} bxc6 {[%clk 00:20:13]} {[%emt
00:10:14]} 22. Bd4 {[%clk 00:19:54]} {[%emt 00:01:11]} Kh8 {[%clk 00:19:17]}
{[%emt 00:01:27]} 23. Rad1 {[%clk 00:14:24]} {[%emt 00:06:00]} Rad8 {[%clk
00:19:41]} {[%emt 00:00:06]} 24. Qg3 {[%clk 00:12:27]} {[%emt 00:02:26]} Bf6
{[%clk 00:17:04]} {[%emt 00:03:07]} 25. Bxf6 {[%clk 00:12:08]} {[%emt
00:00:49]} gxf6 {[%clk 00:17:33]} {[%emt 00:00:02]} 26. Qh4 {[%clk 00:09:39]}
{[%emt 00:02:59]} Qe7 {[%clk 00:14:42]} {[%emt 00:03:21]} 27. Qe4 {[%clk
00:07:18]} {[%emt 00:02:51]} Qd7 {[%clk 00:14:04]} {[%emt 00:01:09]} 28. Qh4
{[%clk 00:07:45]} {[%emt 00:00:02]} Qe7 {[%clk 00:14:10]} {[%emt 00:00:23]} 29.
Rfe1 {[%clk 00:07:47]} {[%emt 00:00:28]} Rd5 {[%clk 00:11:15]} {[%emt
00:03:26]} 30. Re3 {[%clk 00:07:39]} {[%emt 00:00:37]} d2 {[%clk 00:10:51]}
{[%emt 00:00:54]} 31. Rh3 {[%clk 00:07:35]} {[%emt 00:00:34]} h5 {[%clk
00:11:16]} {[%emt 00:00:06]} 32. Rxd2 {[%clk 00:06:52]} {[%emt 00:01:13]} Re5
{[%clk 00:11:13]} {[%emt 00:00:33]} 33. f4 {[%clk 00:06:26]} {[%emt 00:00:55]}
Rf5 {[%clk 00:11:31]} {[%emt 00:00:13]} 34. g4 {[%clk 00:06:15]} {[%emt
00:00:41]} Rg8 {[%clk 00:12:00]} 35. Kh1 {[%clk 00:06:07]} {[%emt 00:00:38]}
Rfg5 {[%clk 00:11:16]} {[%emt 00:01:15]} 36. fxg5 {[%clk 00:06:16]} {[%emt
00:00:22]} Rxg5 {[%clk 00:11:45]} {[%emt 00:00:01]} 37. Qg3 {[%clk 00:05:37]}
{[%emt 00:01:08]} f5 {[%clk 00:11:31]} {[%emt 00:00:44]} 38. Rxh5+ {[%clk
00:05:39]} {[%emt 00:00:27]} Rxh5 {[%clk 00:11:50]} {[%emt 00:00:12]} 39. gxh5
{[%clk 00:06:03]} {[%emt 00:00:06]} Qf6 {[%clk 00:12:18]} {[%emt 00:00:02]} 40.
h6 {[%clk 00:05:37]} {[%emt 00:00:56]} 1-0